bitfinex-derivatives/quotes_BTCF0:USTF0_20250711
["timestamp","ask_amount","ask_price","bid_price","bid_amount"]
[1752196753093,0.2108569,115780.0,115770.0,0.07546]
[1752196753394,0.5716569,115780.0,115770.0,0.47025542]
[1752196753796,0.5723369,115780.0,115770.0,0.47025542]
[1752196754003,0.5723369,115780.0,115770.0,0.51727238]
[1752196754290,0.22016651,115780.0,115770.0,0.51727238]
[1752196754597,0.21948651,115780.0,115770.0,0.51727238]
[1752196754798,0.21948651,115780.0,115770.0,0.52400238]
[1752196755594,0.2108569,115780.0,115770.0,0.52400238]
[1752196757201,0.2108569,115780.0,115770.0,0.50074841]
[1752196760201,0.2108569,115780.0,115770.0,0.32128661]
[1752196760500,0.5716569,115780.0,115770.0,0.32128661]
[1752196760701,0.6037369,115780.0,115770.0,0.27195459]
[1752196760900,0.6037369,115780.0,115770.0,0.49401821]
[1752196762102,0.61240242,115780.0,115770.0,0.49401821]
[1752196764403,0.25160242,115780.0,115770.0,0.49401821]
[1752196764605,0.2422569,115780.0,115770.0,0.49401821]
[1752196764795,0.2422569,115780.0,115770.0,0.85481821]
[1752196764996,0.2422568,115780.0,115770.0,0.87807218]
[1752196765300,0.03814,115780.0,115770.0,1.1068658]
[1752196765696,0.2108568,115780.0,115770.0,0.88480218]
[1752196766904,0.03814,115780.0,115770.0,0.88480218]
[1752196768107,0.2108567,115780.0,115770.0,0.88480218]
[1752196771600,0.2108567,115780.0,115770.0,0.52400218]
[1752196771798,0.2108567,115780.0,115770.0,0.88480218]
[1752196773806,0.03814,115780.0,115770.0,0.88480218]
[1752196774104,0.03814,115780.0,115770.0,1.1068658]
[1752196774405,0.66379047,115800.0,115790.0,0.1834618]
[1752196774596,0.29253798,115800.0,115790.0,0.79681841]
[1752196774798,0.08712267,115800.0,115790.0,0.87712015]
[1752196774999,0.04052,115800.0,115790.0,0.85335716]
[1752196775706,0.08813473,115800.0,115790.0,0.85335716]
[1752196776304,0.08813473,115800.0,115790.0,0.8769711]
[1752196776908,0.09013473,115800.0,115790.0,0.8769711]
[1752196777308,0.08913473,115800.0,115790.0,0.8769711]
[1752196777904,0.04861473,115800.0,115790.0,1.09903472]
[1752196778397,0.04861473,115800.0,115790.0,1.27175472]
[1752196778597,0.04188473,115800.0,115790.0,1.09903472]
[1752196778794,0.002,115810.0,115800.0,0.1726869]
[1752196779004,0.002,115810.0,115800.0,1.27687414]
[1752196779205,0.002,115810.0,115800.0,1.63767414]
[1752196780998,0.004,115810.0,115800.0,1.63767414]
[1752196781206,0.004,115810.0,115800.0,1.70754136]
[1752196781611,0.004,115810.0,115800.0,1.7160279]
[1752196783813,0.004,115810.0,115800.0,1.27190066]
[1752196784116,0.004,115810.0,115800.0,1.73963898]
[1752196784812,0.004,115810.0,115800.0,1.76289295]
[1752196786317,0.004,115810.0,115800.0,1.73963898]
[1752196786713,0.004,115810.0,115800.0,1.75313949]
[1752196787911,0.004,115810.0,115800.0,1.48171625]
[1752196788109,0.004,115810.0,115800.0,1.92584349]
[1752196788513,0.004,115810.0,115800.0,1.92580302]
[1752196788708,0.055,115830.0,115820.0,0.1726571]
[1752196789009,0.07072,115830.0,115820.0,0.99072072]
[1752196789208,0.07072,115830.0,115820.0,1.41452072]
[1752196790314,0.07172,115830.0,115820.0,1.41452072]
[1752196790714,0.0258,115830.0,115820.0,1.41452072]
[1752196792718,0.0248,115830.0,115820.0,1.41552072]
[1752196794214,0.03844153,115840.0,115830.0,0.1726422]
[1752196794405,0.03844153,115840.0,115830.0,1.00886944]
[1752196794612,0.06105153,115840.0,115830.0,1.04156944]
[1752196795512,0.07699153,115840.0,115830.0,1.41538582]
[1752196798318,0.07699153,115840.0,115830.0,1.63744944]
[1752196799228,0.06105153,115840.0,115830.0,1.63744944]
[1752196799433,0.00694153,115840.0,115830.0,1.63744944]
[1752196799631,0.02955153,115840.0,115830.0,1.63744944]
[1752196800436,0.00694153,115840.0,115830.0,1.63744944]
[1752196801835,0.02461,115850.0,115830.0,1.48825944]
[1752196802040,0.002,115850.0,115840.0,0.81829082]
[1752196802438,0.002,115850.0,115840.0,0.83618411]
[1752196803043,0.05381,115870.0,115840.0,0.90911015]
[1752196803238,0.10165,115870.0,115860.0,0.97752464]
[1752196803543,0.10177974,115870.0,115860.0,0.97752464]
[1752196803939,0.05463974,115870.0,115860.0,1.03882464]
[1752196806342,0.05463974,115870.0,115860.0,1.04744893]
[1752196806642,0.00012974,115870.0,115860.0,1.04744893]
[1752196808143,0.00012974,115870.0,115860.0,1.11826049]
[1752196808839,0.04638977,115880.0,115860.0,2.00918665]
[1752196809033,0.04838977,115890.0,115880.0,0.1725676]
[1752196809344,0.002,115890.0,115880.0,0.99529009]
[1752196809544,0.002,115890.0,115880.0,1.05819009]
[1752196812241,0.04638977,115900.0,115890.0,0.1725527]
[1752196812448,0.04638977,115900.0,115890.0,1.63503994]
[1752196813141,0.13309977,115910.0,115900.0,0.1725378]
[1752196813339,0.14903977,115910.0,115900.0,0.75540142]
[1752196813540,0.10265,115910.0,115900.0,0.75540142]
[1752196814748,0.10265,115910.0,115900.0,0.39460142]
[1752196815048,0.10265,115910.0,115900.0,0.99008142]
[1752196815745,0.10265,115910.0,115900.0,1.35088142]
[1752196817349,0.10265,115910.0,115900.0,0.99008142]
[1752196817743,0.275173,115910.0,115900.0,0.99008142]
[1752196818949,0.10265,115910.0,115900.0,0.99008142]
[1752196819342,0.10265,115910.0,115900.0,1.35088142]
[1752196819542,0.16453262,115910.0,115900.0,1.35088142]
[1752196819739,0.10265,115910.0,115900.0,1.35088142]
[1752196820052,0.16453133,115910.0,115900.0,1.35943688]
[1752196820349,0.16453133,115910.0,115900.0,1.35080142]
[1752196820552,0.33705433,115910.0,115900.0,0.75540142]
[1752196820847,0.33773956,115910.0,115900.0,1.35076142]
[1752196821838,0.16521656,115910.0,115900.0,1.35076142]
[1752196822042,0.10265,115910.0,115900.0,1.35076142]
[1752196822442,0.10265,115910.0,115900.0,1.35934023]
[1752196827561,0.10265,115910.0,115900.0,1.35076142]
[1752196827856,0.10265,115910.0,115900.0,0.75540142]
[1752196828047,0.10265,115910.0,115900.0,0.98988142]
[1752196828654,0.275173,115910.0,115900.0,0.98988142]
[1752196829246,0.10265,115910.0,115900.0,1.35928176]
[1752196829950,0.05571,115910.0,115900.0,1.35928176]
[1752196830150,0.05571,115910.0,115900.0,1.42278176]
[1752196831755,0.002,115930.0,115920.0,0.1725081]
[1752196831944,0.0586,115930.0,115920.0,1.57267534]
[1752196832148,0.05792,115930.0,115920.0,1.63547534]
[1752196832663,0.02662,115930.0,115920.0,1.63547534]
[1752196832856,0.002,115930.0,115920.0,1.63547534]
[1752196833052,0.002,115930.0,115920.0,1.65895326]
[1752196833258,0.04776153,115950.0,115940.0,0.1724784]
[1752196833460,0.07974153,115950.0,115940.0,0.98978202]
[1752196833759,0.11106153,115950.0,115940.0,0.98978202]
[1752196834658,0.11106153,115950.0,115940.0,1.35058202]
[1752196834958,0.11106153,115950.0,115940.0,1.41817866]
[1752196835261,0.11106153,115950.0,115940.0,1.43613566]
[1752196835759,0.11106153,115950.0,115940.0,1.46663566]
[1752196836358,0.07906153,115950.0,115940.0,1.46663566]
[1752196836859,0.06286153,115950.0,115940.0,1.68869928]
[1752196837060,0.03156153,115950.0,115940.0,1.68869928]
[1752196837258,0.03156153,115950.0,115940.0,1.49923566]
[1752196837648,0.06156153,115950.0,115940.0,1.50794744]
[1752196837852,0.06156153,115950.0,115940.0,1.50998744]
[1752196839460,0.25022503,115950.0,115940.0,1.07797566]
[1752196839654,0.28062503,115950.0,115940.0,1.07797566]
[1752196839854,0.28062503,115950.0,115940.0,0.48009566]
[1752196840061,0.28062503,115950.0,115940.0,1.07801566]
[1752196840253,0.28062503,115950.0,115940.0,0.85595204]
[1752196840452,0.28062503,115950.0,115940.0,1.07801566]
[1752196840653,0.64142503,115950.0,115940.0,0.25803204]
[1752196840852,0.64142503,115950.0,115920.0,0.31003957]
[1752196840853,0.2132983,115940.0,115920.0,0.31003957]
[1752196841159,0.73119775,115940.0,115930.0,0.1724932]
[1752196841354,0.70017775,115940.0,115930.0,0.1724932]
[1752196841556,0.6914229,115940.0,115930.0,0.1724932]
[1752196842565,0.6051783,115940.0,115930.0,0.39455682]
[1752196842765,0.4327,115940.0,115930.0,0.39455682]
[1752196843057,0.0415,115940.0,115930.0,0.75535682]
[1752196843260,0.00068,115940.0,115930.0,1.17785682]
[1752196843458,0.00068,115940.0,115930.0,1.39992044]
[1752196844260,0.00068,115940.0,115930.0,1.42344283]
[1752196845362,0.03156153,115950.0,115930.0,1.42344283]
[1752196845363,0.03156153,115950.0,115940.0,0.1724784]
[1752196845660,0.03156153,115950.0,115940.0,1.63956564]
[1752196846861,0.03156153,115950.0,115940.0,1.54074783]
[1752196847461,0.00694153,115950.0,115940.0,1.54074783]
[1752196847962,0.03156153,115950.0,115940.0,1.54074783]
[1752196848365,0.03156153,115950.0,115940.0,1.1954384]
[1752196848561,0.03156153,115950.0,115940.0,1.54074783]
[1752196849964,0.03156153,115950.0,115940.0,1.1954384]
[1752196850150,0.03156153,115950.0,115940.0,1.56475252]
[1752196850357,0.03156153,115950.0,115940.0,1.54074783]
[1752196851262,0.03156153,115950.0,115940.0,1.56476275]
[1752196851466,0.03156153,115950.0,115940.0,1.54074783]
[1752196851965,0.03156153,115950.0,115940.0,1.56477569]
[1752196853160,0.22022513,115950.0,115940.0,0.60521569]
[1752196853366,0.64263973,115950.0,115940.0,0.1724784]
[1752196853557,0.29485153,115950.0,115940.0,0.7942061]
[1752196853757,0.25173513,115950.0,115940.0,1.13951553]
[1752196853957,0.25173513,115950.0,115940.0,1.13947553]
[1752196854867,0.25173513,115950.0,115940.0,1.11542783]
[1752196855758,0.25241513,115950.0,115940.0,1.11542783]
[1752196855960,0.07927153,115950.0,115940.0,1.11542783]
[1752196856161,0.25173513,115950.0,115940.0,1.11542783]
[1752196856354,0.11087153,115950.0,115940.0,1.11542783]
[1752196857362,0.11087153,115950.0,115940.0,1.11538783]
[1752196857562,0.11087153,115950.0,115940.0,1.50022863]
[1752196857761,0.28333503,115950.0,115940.0,1.50022863]
[1752196857962,0.11087153,115950.0,115940.0,1.1549192]
[1752196858267,0.28333503,115950.0,115940.0,1.50022863]
[1752196859467,0.11087153,115950.0,115940.0,1.50022863]
[1752196860267,0.28333503,115950.0,115940.0,1.50022863]
[1752196861664,0.28333503,115950.0,115940.0,0.54182863]
[1752196861966,0.28333503,115950.0,115940.0,1.11498783]
[1752196862168,0.28333503,115950.0,115940.0,1.1390632]
[1752196864670,0.28333503,115950.0,115940.0,1.13907693]
[1752196864873,0.28333503,115950.0,115940.0,1.11498783]
[1752196865965,0.28333503,115950.0,115940.0,0.7696784]
[1752196866165,0.28333503,115950.0,115940.0,1.11498783]
[1752196867077,0.03067153,115950.0,115940.0,1.49987873]
[1752196867263,0.21920503,115950.0,115940.0,0.96667873]
[1752196867568,0.21920503,115950.0,115940.0,1.13947873]
[1752196867774,0.11254153,115950.0,115940.0,1.13947873]
[1752196867971,0.11254153,115950.0,115940.0,1.50027873]
[1752196868165,0.07944153,115950.0,115940.0,1.53207873]
[1752196868363,0.07944153,115950.0,115940.0,1.56267873]
[1752196868768,0.07944153,115950.0,115940.0,1.43839041]
[1752196869476,0.04674153,115950.0,115940.0,1.43839041]
[1752196869666,0.03067153,115950.0,115940.0,1.65941152]
[1752196870881,0.00694153,115950.0,115940.0,1.65941152]
[1752196874891,0.00694153,115950.0,115940.0,1.68257997]
[1752196875594,0.00694153,115950.0,115940.0,1.71345728]
[1752196875794,0.00694153,115950.0,115940.0,1.69028883]
[1752196876194,0.00694153,115950.0,115940.0,1.68260361]
[1752196882203,0.00694153,115950.0,115940.0,1.63532062]
[1752196882506,0.03130153,115950.0,115940.0,0.81669951]
[1752196882705,0.03130153,115950.0,115940.0,1.41313951]
[1752196883901,0.03130153,115950.0,115940.0,1.46015965]
[1752196884703,0.03130153,115950.0,115940.0,1.45987965]
[1752196887705,0.03130153,115950.0,115940.0,1.43669902]
[1752196888100,0.00694153,115950.0,115940.0,1.65772013]
[1752196888807,0.00694153,115950.0,115940.0,1.68090076]
[1752196892209,0.00694153,115950.0,115940.0,1.71180827]
[1752196893106,0.00694153,115950.0,115940.0,1.71380827]
[1752196894106,0.00694153,115950.0,115940.0,1.69062764]
[1752196898209,0.02436,115960.0,115950.0,0.1724635]
[1752196898514,0.02436,115960.0,115950.0,1.08722599]
[1752196899415,0.0323,115970.0,115960.0,0.2110186]
[1752196899616,0.0323,115970.0,115960.0,1.63298033]
[1752196899911,0.0323,115970.0,115960.0,1.69728033]
[1752196900111,0.002,115970.0,115960.0,1.69728033]
[1752196900711,0.002,115970.0,115960.0,1.70589394]
[1752196903220,0.002,115970.0,115960.0,1.7290747]
[1752196903415,0.002,115970.0,115960.0,1.70589394]
[1752196904421,0.002,115970.0,115960.0,1.7290747]
[1752196905022,0.002,115970.0,115960.0,1.70589394]
[1752196906120,0.002,115970.0,115960.0,0.66857172]
[1752196906323,0.08876,115970.0,115960.0,1.45229283]
[1752196907323,0.0644,115970.0,115960.0,1.45229283]
[1752196907917,0.08876,115970.0,115960.0,1.45229283]
[1752196908622,0.0333,115970.0,115960.0,1.67331394]
[1752196908811,0.0333,115970.0,115960.0,1.70391394]
[1752196911018,0.0333,115970.0,115960.0,1.10871394]
[1752196911219,0.0333,115970.0,115960.0,1.70387394]
[1752196912425,0.05546,115980.0,115970.0,0.1724338]
[1752196912627,0.08706,115980.0,115970.0,1.07005553]
[1752196913020,0.0627,115980.0,115970.0,1.07005553]
[1752196913327,0.0316,115980.0,115970.0,1.07005553]
[1752196913722,0.0316,115980.0,115970.0,1.10075553]
[1752196914931,0.0316,115980.0,115970.0,1.07691602]
[1752196915135,0.07752443,115990.0,115980.0,0.2118589]
[1752196915329,0.04648266,115990.0,115980.0,1.64036112]
[1752196915628,0.04648266,115990.0,115980.0,1.67316112]
[1752196915827,1.15189258,116000.0,115990.0,0.2118441]
[1752196916029,1.09495259,116000.0,115990.0,1.01468632]
[1752196916231,1.06475259,116000.0,115990.0,1.07798632]
[1752196916435,1.04919386,116000.0,115990.0,1.07798632]
[1752196917635,0.56416446,116000.0,115990.0,1.07798632]
[1752196918730,0.56416446,116000.0,115990.0,1.16381249]
[1752196919328,0.06241615,116000.0,115990.0,2.18135649]
[1752196919533,0.01522229,116000.0,115990.0,1.93135649]
[1752196920132,0.002,116000.0,115990.0,1.93135649]
[1752196920330,0.04847385,116010.0,116000.0,0.1723892]
[1752196920534,0.04847385,116010.0,116000.0,1.03903142]
[1752196921327,0.002,116010.0,116000.0,1.03903142]
[1752196921534,0.002,116010.0,116000.0,1.06280111]
[1752196921733,0.002,116010.0,116000.0,1.07627666]
[1752196922847,0.002,116010.0,116000.0,1.10138913]
[1752196923038,0.002,116010.0,116000.0,1.06480111]
[1752196923238,0.002,116010.0,116000.0,1.65776111]
[1752196923440,0.002,116010.0,116000.0,1.66276111]
[1752196924041,0.002,116010.0,116000.0,1.44174]
[1752196924239,0.04302,116010.0,116000.0,1.37794]
[1752196924448,0.10732,116010.0,116000.0,0.78298]
[1752196924640,0.10732,116010.0,116000.0,1.3779]
[1752196927447,0.2796943,116010.0,116000.0,0.78298]
[1752196927648,0.2796943,116010.0,116000.0,1.35413031]
[1752196928347,0.2796943,116010.0,116000.0,0.75921031]
[1752196928542,0.50071541,116010.0,116000.0,0.005]
[1752196928848,0.2796943,116010.0,116000.0,0.99129031]
[1752196929247,0.2796943,116010.0,116000.0,0.7702692]
[1752196929446,0.2796943,116010.0,116000.0,0.99119728]
[1752196929742,0.2803743,116010.0,116000.0,0.39341031]
[1752196929947,0.2803743,116010.0,116000.0,0.99029031]
[1752196930748,0.2803743,116010.0,116000.0,0.7692692]
[1752196930949,0.86219541,116010.0,116000.0,0.1743893]
[1752196931745,1.03460341,116010.0,116000.0,0.1743893]
[1752196932146,1.03460341,116010.0,116000.0,0.002]
[1752196932347,1.11219541,116010.0,116000.0,0.002]
[1752196932652,0.2134241,115990.0,115980.0,0.2155152]
[1752196933152,0.2782241,115990.0,115980.0,0.2155152]
[1752196933450,0.172419,115980.0,115970.0,0.57646114]
[1752196933658,0.10582,115980.0,115970.0,1.39236225]
[1752196933856,0.10582,115980.0,115970.0,1.41615335]
[1752196934061,0.278239,115980.0,115970.0,1.41615335]
[1752196934660,0.10582,115980.0,115970.0,1.41615335]
[1752196934859,0.278239,115980.0,115970.0,0.82447335]
[1752196935063,0.278239,115980.0,115970.0,0.83757224]
[1752196935254,0.278239,115980.0,115970.0,1.05859335]
[1752196935454,0.278239,115980.0,115970.0,1.41939335]
[1752196935654,0.278239,115980.0,115970.0,1.42339335]
[1752196936058,0.278239,115980.0,115970.0,1.20537224]
[1752196936363,0.278239,115980.0,115970.0,1.42639335]
[1752196937664,0.278239,115980.0,115970.0,1.40260225]
[1752196937859,0.10582,115980.0,115970.0,1.40260225]
[1752196938060,0.10582,115980.0,115970.0,1.42634226]
[1752196939568,0.10582,115980.0,115970.0,1.42834226]
[1752196942867,0.05726,115980.0,115970.0,1.49064226]
[1752196943167,0.07271,115980.0,115970.0,1.49064226]
[1752196944564,0.07149,115990.0,115980.0,0.1776189]
[1752196944759,0.02304,115990.0,115980.0,1.00420113]
[1752196944960,0.02304,115990.0,115980.0,1.06529907]
[1752196945160,0.06979,116000.0,115990.0,0.1756041]
[1752196945463,0.06979,116000.0,115990.0,1.02442521]
[1752196946567,0.06979,116000.0,115990.0,1.38622521]
[1752196946969,0.06979,116000.0,115990.0,1.41006066]
[1752196947168,0.06979,116000.0,115990.0,1.44026066]
[1752196947667,0.06979,116000.0,115990.0,1.1954041]
[1752196947870,0.2421792,116000.0,115990.0,1.41642521]
[1752196948771,0.2739792,116000.0,115990.0,1.41642521]
[1752196949072,0.2739792,116000.0,115990.0,1.35342521]
[1752196949364,0.2739792,116000.0,115990.0,0.5374041]
[1752196949570,0.2739792,116000.0,115990.0,1.35338521]
[1752196950359,0.10159,116000.0,115990.0,1.35538521]
[1752196950564,0.2739792,116000.0,115990.0,1.1343641]
[1752196950769,0.10159,116000.0,115990.0,1.1343641]
[1752196950970,0.10159,116000.0,115990.0,1.38868521]
[1752196951471,0.2739792,116000.0,115990.0,1.38868521]
[1752196952270,0.10159,116000.0,115990.0,1.38868521]
[1752196952579,0.2739792,116000.0,115990.0,1.38868521]
[1752196952769,0.2739792,116000.0,115990.0,1.41254017]
[1752196953770,0.10159,116000.0,115990.0,1.41254017]
[1752196954176,0.2739792,116000.0,115990.0,1.41254017]
[1752196955076,0.2739792,116000.0,115990.0,1.38868521]
[1752196955377,0.10159,116000.0,115990.0,1.38868521]
[1752196955573,0.2739793,116000.0,115990.0,1.38668521]
[1752196956074,0.6347793,116000.0,115990.0,0.0375]
[1752196956273,0.85652042,116000.0,115990.0,0.0042]
[1752196956672,0.49572042,116000.0,115990.0,0.1766042]
[1752196956872,0.85652042,116000.0,115990.0,0.1766042]
[1752196957178,0.90299427,116000.0,115990.0,0.1766042]
[1752196957378,0.68197316,116000.0,115990.0,0.1766042]
[1752196957778,0.60369931,116000.0,115990.0,0.42152035]
[1752196957974,0.60369931,116000.0,115990.0,0.45202035]
[1752196958174,0.27479931,116000.0,115990.0,0.45202035]
[1752196958380,0.2740793,116000.0,115990.0,0.45202035]
[1752196961181,0.32055315,116000.0,115990.0,0.42812531]
[1752196962384,0.32055315,116000.0,115990.0,0.39762531]
[1752196963483,0.32055315,116000.0,115990.0,0.75842531]
[1752196964079,0.32055315,116000.0,115990.0,0.001]
[1752196964080,0.90237426,116000.0,115990.0,0.001]
[1752196964383,0.90308047,116000.0,115990.0,0.001]
[1752196964775,0.85658041,116000.0,115990.0,0.001]
[1752196965184,0.90308038,116000.0,115990.0,0.001]
[1752196965685,0.85658041,116000.0,115990.0,0.001]
[1752196965984,0.90308038,116000.0,115990.0,0.001]
[1752196966186,0.85658041,116000.0,115990.0,0.001]
[1752196967079,0.68205927,116000.0,115990.0,0.001]
[1752196967385,0.90308038,116000.0,115990.0,0.001]
[1752196968088,0.90308038,116000.0,115990.0,0.02490436]
[1752196968485,0.90308038,116000.0,115990.0,0.001]
[1752196973082,0.90308038,116000.0,115990.0,0.1734042]
[1752196973288,0.90308038,116000.0,115990.0,0.001]
[1752196973689,0.68205927,116000.0,115990.0,0.001]
[1752196973989,0.68205927,116000.0,115990.0,0.1734042]
[1752196974190,0.68205927,116000.0,115990.0,0.001]
[1752196974492,0.32125927,116000.0,115990.0,0.39762531]
[1752196974693,0.32125927,116000.0,115990.0,0.42156002]
[1752196974694,0.32057927,116000.0,115990.0,0.42156002]
[1752196974882,0.2740793,116000.0,115990.0,0.42156002]
[1752196976694,0.2740793,116000.0,115990.0,0.20053891]
[1752196976894,0.6348793,116000.0,115990.0,0.24915582]
[1752196977087,0.85662042,116000.0,115990.0,0.02493471]
[1752196978492,0.63559931,116000.0,115990.0,0.02493471]
[1752196978684,0.85662042,116000.0,115990.0,0.02493471]
[1752196979496,0.85662042,116000.0,115990.0,0.19733881]
[1752196980995,0.90312039,116000.0,115990.0,0.1734041]
[1752196981496,0.90312039,116000.0,115990.0,0.19735379]
[1752196983097,0.68209928,116000.0,115990.0,0.19735379]
[1752196983298,0.90312039,116000.0,115990.0,0.19735379]
[1752196984799,0.90312039,116000.0,115990.0,0.1734041]
[1752196984994,0.02376001,116000.0,115990.0,1.37933555]
[1752196985199,0.02304,116000.0,115990.0,1.47910387]
[1752196985390,0.02304,116000.0,115990.0,1.46562533]
[1752196985595,0.07220997,116010.0,116000.0,0.1755893]
[1752196985792,0.04849997,116010.0,116000.0,0.84656075]
[1752196985992,0.002,116010.0,116000.0,1.06758186]
[1752196986192,0.002,116010.0,116000.0,1.09067164]
[1752196987098,0.002,116010.0,116000.0,1.09848937]
[1752196987494,0.002,116010.0,116000.0,1.12160114]
[1752196987888,0.02371,116020.0,116010.0,0.1723744]
[1752196988098,0.08654997,116040.0,116030.0,0.1723447]
[1752196988287,0.2130598,116040.0,116030.0,0.39336581]
[1752196988492,0.2123798,116040.0,116030.0,1.05148581]
[1752196989395,0.22113513,116040.0,116030.0,1.05148581]
[1752196989692,0.80295624,116040.0,116030.0,0.65808]
[1752196989894,0.86661624,116040.0,116030.0,0.62708]
[1752196990295,0.86661624,116040.0,116030.0,0.7994247]
[1752196990592,0.86661624,116040.0,116030.0,0.62708]
[1752196990792,0.86661624,116040.0,116030.0,0.7994248]
[1752196990992,0.86761624,116040.0,116030.0,0.62708]
[1752196991393,0.86395624,116040.0,116030.0,0.64295]
[1752196991596,0.86395624,116040.0,116030.0,0.8152948]
[1752196991899,0.86395624,116040.0,116030.0,0.64295]
[1752196992099,0.86395624,116040.0,116030.0,0.8152948]
[1752196992294,0.86395624,116040.0,116030.0,0.2204148]
[1752196992494,0.86395624,116040.0,116030.0,0.8152548]
[1752196992901,0.85520091,116040.0,116030.0,0.8152548]
[1752196993992,0.85420091,116040.0,116030.0,0.8152148]
[1752196994593,0.1886848,116030.0,116020.0,0.49677477]
[1752196994800,0.43341591,116030.0,116020.0,0.76724934]
[1752196994998,0.04005,116030.0,116020.0,1.02414045]
[1752196995199,0.2123948,116030.0,116020.0,0.86621934]
[1752196995803,0.2452948,116030.0,116020.0,0.84621934]
[1752196996403,0.2452948,116030.0,116020.0,0.86621934]
[1752196999206,0.2452948,116030.0,116020.0,0.09909974]
[1752196999507,0.46631591,116030.0,116020.0,0.07909974]
[1752196999800,0.49949591,116030.0,116020.0,0.07909974]
[1752197002608,0.49949591,116030.0,116020.0,0.25145944]
[1752197002804,0.2459748,116030.0,116020.0,0.49248055]
[1752197003111,0.2452948,116030.0,116020.0,0.49248055]
[1752197003602,0.2452948,116030.0,116020.0,0.32012085]
[1752197003798,0.2452948,116030.0,116020.0,0.09909974]
[1752197004002,0.2452948,116030.0,116020.0,0.07909974]
[1752197004903,0.2452948,116030.0,116020.0,0.25145944]
[1752197005605,0.2768948,116030.0,116020.0,0.25145944]
[1752197008210,0.49859591,116030.0,116020.0,0.21995954]
[1752197009708,0.49859591,116030.0,116020.0,0.18835954]
[1752197010406,0.49859591,116030.0,116020.0,0.18835944]
[1752197011504,0.85939591,116030.0,116020.0,0.01599974]
[1752197011705,0.85939591,116030.0,116020.0,0.00012974]
[1752197012400,0.85939591,116030.0,116020.0,0.18848934]
[1752197012605,0.49859591,116030.0,116020.0,0.18848934]
[1752197012801,0.85939591,116030.0,116020.0,0.18848934]
[1752197013616,0.6383748,116030.0,116020.0,0.18848934]
[1752197014914,0.6383748,116030.0,116020.0,0.21256647]
[1752197015115,0.2775748,116030.0,116020.0,0.21256647]
[1752197015318,0.2768948,116030.0,116020.0,0.21256647]
[1752197015715,0.8715348,116030.0,116020.0,0.25824222]
[1752197015919,0.87225481,116030.0,116020.0,0.25824222]
[1752197016217,0.87225481,116030.0,116020.0,0.05368262]
[1752197016414,1.09327592,116030.0,116020.0,0.05368262]
[1752197016819,1.09327592,116030.0,116020.0,0.03768262]
[1752197018118,1.09327592,116030.0,116020.0,0.21004242]
[1752197018620,1.09327592,116030.0,116020.0,0.03768259]
[1752197019020,1.09327592,116030.0,116020.0,0.02420687]
[1752197019617,1.45407592,116030.0,116020.0,0.02420687]
[1752197020517,1.45407592,116030.0,116020.0,0.02423559]
[1752197020718,0.2116947,116010.0,116000.0,0.21322523]
[1752197020917,1.4009747,116010.0,116000.0,0.25114265]
[1752197021122,1.4648547,116010.0,116000.0,0.61194265]
[1752197021721,1.4648547,116010.0,116000.0,0.62046279]
[1752197021918,1.4648547,116010.0,116000.0,0.81837213]
[1752197022417,1.4648547,116010.0,116000.0,0.28518273]
[1752197022923,1.22928,116010.0,116000.0,0.81937213]
[1752197023124,1.22928,116010.0,116000.0,0.88277213]
[1752197023125,0.04,116010.0,116000.0,0.88277213]
[1752197023319,0.03932,116010.0,116000.0,0.88277213]
[1752197023923,0.07716457,116020.0,116000.0,1.30502273]
[1752197024118,0.03932,116020.0,116010.0,1.01565672]
[1752197024321,0.03932,116020.0,116010.0,1.09323414]
[1752197024912,0.03932,116020.0,116010.0,1.11634591]
[1752197025117,0.03932,116020.0,116010.0,0.8953248]
[1752197025521,0.03932,116020.0,116010.0,0.89532309]
[1752197025716,0.03932,116020.0,116010.0,1.11634423]
[1752197026214,0.03932,116020.0,116010.0,1.09323246]
[1752197026410,0.03932,116020.0,116010.0,1.11634423]
[1752197026614,0.03932,116020.0,116010.0,1.10286849]
[1752197028224,0.03932,116020.0,116010.0,1.07975672]
[1752197028522,0.03932,116020.0,116010.0,1.10286849]
[1752197028724,0.03932,116020.0,116010.0,1.07975672]
[1752197029327,0.03932,116020.0,116010.0,1.10286849]
[1752197030727,0.14918457,116030.0,116020.0,0.1883597]
[1752197031028,0.14918457,116030.0,116020.0,0.82552081]
[1752197031029,0.2749648,116030.0,116020.0,0.82552081]
[1752197033743,0.03932,116030.0,116020.0,1.47678047]
[1752197035640,0.03932,116030.0,116020.0,1.54735389]
[1752197035841,0.211665,116030.0,116020.0,1.32633278]
[1752197036038,0.242565,116030.0,116020.0,1.54735389]
[1752197038937,0.272965,116030.0,116020.0,1.54735389]
[1752197040040,0.272965,116030.0,116020.0,1.51435389]
[1752197042443,0.272965,116030.0,116020.0,1.15355389]
[1752197042643,0.272965,116030.0,116020.0,1.51435389]
[1752197045941,0.07022,116030.0,116020.0,1.51435389]
[1752197046141,0.2425647,116030.0,116020.0,1.54605389]
[1752197049840,0.2425647,116030.0,116020.0,1.18525389]
[1752197050049,0.2425647,116030.0,116020.0,1.54605389]
[1752197050250,0.2746647,116030.0,116020.0,1.54605389]
[1752197051554,0.2746647,116030.0,116020.0,1.51435389]
[1752197051856,0.85648581,116030.0,116020.0,0.72915308]
[1752197052045,0.85720582,116030.0,116020.0,0.65857966]
[1752197052242,0.85720582,116030.0,116020.0,0.06409966]
[1752197052442,0.90377039,116030.0,116020.0,0.06409966]
[1752197052858,0.90377039,116030.0,116020.0,0.23645926]
[1752197053155,0.54297039,116030.0,116020.0,0.2127996]
[1752197053345,0.54297039,116030.0,116020.0,0.2365003]
[1752197053656,0.32194928,116030.0,116020.0,0.2365003]
[1752197053858,0.54225038,116030.0,116020.0,0.2365003]
[1752197054156,0.54293038,116030.0,116020.0,0.2365003]
[1752197054555,0.28980927,116030.0,116020.0,0.45752141]
[1752197054758,0.2425647,116030.0,116020.0,0.52152141]
[1752197054958,0.2425647,116030.0,116020.0,0.88232141]
[1752197055757,0.2425647,116030.0,116020.0,0.89579704]
[1752197056857,0.2425647,116030.0,116020.0,0.67477593]
[1752197057160,0.2425647,116030.0,116020.0,0.64157593]
[1752197057360,0.2735647,116030.0,116020.0,0.64157593]
[1752197058162,0.2735647,116030.0,116020.0,0.6281003]
[1752197058465,0.2735647,116030.0,116020.0,0.64157598]
[1752197058660,0.2735647,116030.0,116020.0,0.84912141]
[1752197058861,0.32012927,116030.0,116020.0,0.82542071]
[1752197059162,0.32012927,116030.0,116020.0,0.65306111]
[1752197059362,0.2735647,116030.0,116020.0,0.65306111]
[1752197061664,0.2735647,116030.0,116020.0,0.43204]
[1752197061862,0.2735647,116030.0,116020.0,0.65306111]
[1752197062063,0.32010908,116030.0,116020.0,0.65306111]
[1752197062562,0.33559728,116030.0,116020.0,0.65306111]